Cogmind - Beta 13 @@@ ROGUE MODE // 2024.06.23 @ 08:09:18 Player: puppuppit Result: Destroyed by 0Y-LVQ(R) with Subdweller Beam Cannon Performance ------------- Evolutions (0) 0 Regions Visited (2) 400 Robots Destroyed (52) 260 Value Destroyed (861) 861 Prototype IDs (4) 80 Alien Tech Used (0) 0 Bonus (0) 0 TOTAL SCORE: 1601 Bonus ------- None Cogmind --------- Core Integrity 0/250 Matter 288/300 Energy 78/100 System Corruption 0% Temperature Cool (9) Movement Hovering (120) Ox1 Location -10/Subcaves Parts ------- > --- POWER (1) -------- (None) > --- PROPULSION (2) --- Hover Unit > --- UTILITY (2) ------ Small Storage Unit Targeting Computer > --- WEAPON (2) ------- Light Cannon Light Cannon > --- INVENTORY (8) ---- Hover Unit Hover Unit Light Cannon Light Cannon Grenade Launcher Peak State ------------ > --- POWER ------------ Light Ion Engine > --- PROPULSION ------- Wheel Wheel > --- UTILITY ---------- Small Storage Unit Improved Terrain Scanner > --- WEAPON ----------- Assault Rifle Assault Rifle > --- INVENTORY -------- Light Ion Engine Wheel Compact Wheel Compact Wheel Compact Wheel Light Assault Rifle [Rating: 9] Favorites ----------- Power Light Ion Engine Engine Light Ion Engine Propulsion Hover Unit Wheel Wheel Hover Unit Hover Unit Utility Small Storage Unit Device Structural Scanner Storage Small Storage Unit Processor Targeting Computer Hackware Hacking Suite Weapon Assault Rifle Ballistic Gun Assault Rifle Ballistic Cannon Light Cannon Launcher Grenade Launcher Build | -11 -10 -10 ------- Run | Yrd Mat Sub Slots Evolved . | . . . Power . | . . . Propulsion . | . . . Utility . | . . . Weapon . | . . . Parts Attached 55 | 14 30 11 Power 9 | 5 4 . Engine 9 | 5 4 . Core . | . . . Reactor . | . . . Propulsion 15 | 4 9 2 Treads . | . . . Leg . | . . . Wheel 5 | 4 1 . Hover 10 | . 8 2 Flight . | . . . Utility 7 | 2 5 . Device 3 | 1 2 . Storage 2 | 1 1 . Processor 1 | . 1 . Hackware 1 | . 1 . Protection . | . . . Artifact . | . . . Weapon 24 | 3 12 9 Energy Gun . | . . . Energy Cannon . | . . . Ballistic Gun 8 | 3 5 . Ballistic Cannon 9 | . 3 6 Launcher 7 | . 4 3 Special Weapon . | . . . Impact Weapon . | . . . Slashing Weapon . | . . . Piercing Weapon . | . . . Special Melee Weapon . | . . . Unidentified Prototypes . | . . . Parts Lost 11 | . 6 5 Power . | . . . Propulsion 7 | . 4 3 Utility . | . . . Weapon 4 | . 2 2 Highest Loss Streak 4 | . 3 4 To Critical Strikes . | . . . Average Slot Usage (%) 88 | . 89 84 Engine 5 | . 7 . Wheel 1 | . 1 . Hover 26 | . 25 27 Device 6 | . 8 . Storage 14 | . 14 14 Processor 5 | . 1 14 Ballistic Gun 14 | . 19 . Ballistic Cannon 12 | . 7 25 Naked Turns . | . . . Heaviest Build 13 | 13 13 11 Greatest Support 26 | 26 20 12 Greatest Overweight (x) 2 | . 2 . Average Overweight (x) . | . . . Largest Inventory Capacity 8 | 8 8 8 Average Capacity 7 | 7 8 8 Most Carried 8 | 8 8 8 Average Carried 7 | 4 7 7 Final Capacity 8 | 8 8 8 Final Carried 8 | 8 8 5 Class Distribution -------------------- 100% | Mutant Dominant Class ---------------- Mutant | -10/Materials Mutant | -10/Subcaves Resources | -11 -10 -10 ----------- Run | Yrd Mat Sub Matter Collected 1937 | 328 1200 409 Remotely . | . . . Salvage Created 1485 | 214 1037 234 Parts 106 | 20 73 13 Haulers Intercepted 2 | . 2 . Recyclers Shooed 3 | . 3 . Parts Field Recycled . | . . . Retrieved Matter . | . . . Parts Self-Destructed 5 | . . 5 Prevented . | . . . Kills | -11 -10 -10 ------- Run | Yrd Mat Sub Combat Hostiles Destroyed 17 | . 10 7 Guns 7 | . 7 . Cannons 7 | . 1 6 AOE 3 | . 2 1 Classes Destroyed 9 | 3 5 1 Worker 12 | 2 10 . Builder 4 | . 4 . Tunneler 6 | 5 1 . Hauler 2 | . 2 . Recycler 5 | 1 4 . Operator 3 | . 3 . Watcher 3 | . 3 . Grunt 12 | . 10 2 Subdweller 5 | . . 5 Best Kill Streak 5 | 4 5 2 Combat Bots Only 2 | . 2 2 Max Kills in Single Turn 2 | 1 2 1 Gunslinging . | . . . Exploded 2 | . 2 1 Melee . | . . . Uniques/NPCs Destroyed . | . . . Combat | -11 -10 -10 -------- Run | Yrd Mat Sub Hostile Shots Fired 101 | . 66 35 Missed 31 | . 21 10 Damage Taken 1223 | . 625 598 Core 257 | . 79 178 Absorbed by Shields . | . . . Core Remaining (%) 100 | 100 . . Volleys Fired 200 | 21 144 35 Largest 2 | 2 2 2 Hottest 74 | 40 70 74 Shots Fired 387 | 42 285 60 Gun 288 | 42 246 . Cannon 87 | . 34 53 Launcher 12 | . 5 7 Special . | . . . Kinetic 375 | 42 280 53 Thermal . | . . . Explosive 12 | . 5 7 Electromagnetic . | . . . Robot Hit Streak 13 | 6 8 13 Robot Miss Streak 5 | 3 5 2 Penetration Max . | . . . Secondary Targets . | . . . Shots Hit Robots 223 | 22 162 39 Core Hits 89 | 9 59 21 Critical Kills 1 | . 1 . Critical Parts Destroyed . | . . . Critical Strikes 3 | . 2 1 Destroy 1 | . 1 . Blast 2 | . 1 1 Melee Attacks . | . . . Impact . | . . . Slashing . | . . . Piercing . | . . . Sneak Attacks . | . . . Combat Hostiles . | . . . Follow-up Attacks . | . . . Damage Inflicted 3449 | 289 2199 961 Guns 1981 | 289 1692 . Cannons 1009 | . 376 633 Explosions 459 | . 131 328 Melee . | . . . Ramming . | . . . Kinetic 2990 | 289 2068 633 Thermal . | . . . Explosive 459 | . 131 328 Electromagnetic . | . . . Impact . | . . . Slashing . | . . . Piercing . | . . . Highest Corruption . | . . . Average Corruption . | . . . Corruption Purged . | . . . Corruption Blocked . | . . . Overload Shots . | . . . Overflow Damage 21 | . 15 6 Projectiles 9 | . 3 6 Explosions 12 | . 12 . Melee . | . . . Knockbacks 11 | . 6 5 Impact . | . . . Kinetic 11 | . 6 5 Secondary . | . . . Self-Inflicted Damage 38 | . 38 . Shots 1 | . 1 . Rammed . | . . . Targets Rammed . | . . . Kicked . | . . . Crushed . | . . . Highest Temperature 22 | . 22 . Average Temperature 5 | . 5 . Received Heat Transfer 531 | . 345 186 Siege Activations . | . . . Robots Corrupted . | . . . Combat Hostiles . | . . . Parts Fried . | . . . Impact Corruptions . | . . . Robots Melted . | . . . Combat Hostiles . | . . . Parts Melted . | . . . Heat Transferred . | . . . Parts Sabotaged . | . . . Parts Stolen . | . . . Parts Stripped . | . . . Power Chain Reactions . | . . . Alert | -11 -10 -10 ------- Run | Yrd Mat Sub Peak Influence 267 | 40 267 . Initial 26 | . 26 . Average 100 | 19 111 . Maximum Alert Level 1 | . 1 . Low Security (%) 82 | 100 80 . Level 1 17 | . 19 . Level 2 . | . . . Level 3 . | . . . Level 4 . | . . . Level 5 . | . . . High Security . | . . . Max Security . | . . . Squads Dispatched 4 | . 4 . Investigation 3 | . 3 . Extermination . | . . . Reinforcement 1 | . 1 . Assault . | . . . Garrison . | . . . Intercept . | . . . Searches Triggered . | . . . Construction Impeded . | . . . Haulers Reinforced . | . . . Active Scanning Responses . | . . . Cargo Convoy Interrupts . | . . . Stealth | -11 -10 -10 --------- Run | Yrd Mat Sub Distress Signals . | . . . Communications Jammed . | . . . Distress Signals . | . . . Times Spotted 32 | . 23 9 Peak Tracking Total 3 | . 3 3 Tactical Retreats . | . . . Traps | -11 -10 -10 ------- Run | Yrd Mat Sub Traps Triggered 1 | . 1 . Indirectly . | . . . Trap Hack Attempts . | . . . Triggered . | . . . Disarmed . | . . . Reprogrammed . | . . . Reused 1 | . . 1 Traps Extracted . | . . . Installed 1 | . . 1 Triggered 1 | . . 1 Machines | -11 -10 -10 ---------- Run | Yrd Mat Sub Machines Disabled 1 | . 1 . Max in Single Turn 1 | . 1 . Machines Repaired . | . . . Machines Dismantled . | . . . Machines Sabotaged . | . . . Overloaded Fab Kills . | . . . Hacking | -11 -10 -10 --------- Run | Yrd Mat Sub Machines Accessed 7 | . 7 . Terminals 7 | . 7 . Fabricators . | . . . Repair Stations . | . . . Recycling Units . | . . . Scanalyzers . | . . . Garrison Access . | . . . Total Hacks 41 | . 41 . Successful 22 | . 22 . Failed 18 | . 18 . Catastrophic 2 | . 2 . Database Lockouts 1 | . 1 . Manual 25 | . 25 . Terminals 41 | . 41 . Fabricators . | . . . Repair Stations . | . . . Recycling Units . | . . . Scanalyzers . | . . . Garrison Access . | . . . Terminal Hacks 22 | . 22 . Record 1 | . 1 . Robot Schematic 1 | . 1 . Robot Analysis 8 | . 8 . Prototype ID Bank 3 | . 3 . Branch Access Points 1 | . 1 . Terminal Index 1 | . 1 . Unreport Threat 1 | . 1 . Locate Traps 2 | . 2 . Hauler Manifests 1 | . 1 . Zone Layout 3 | . 3 . Fabricator Hacks . | . . . Repair Station Hacks . | . . . Recycling Unit Hacks . | . . . Scanalyzer . | . . . Garrison Access Hacks . | . . . Unauthorized Hacks . | . . . Terminals . | . . . Fabricators . | . . . Repair Stations . | . . . Recycling Units . | . . . Scanalyzers . | . . . Garrison Access . | . . . Data Cores Recovered 1 | . 1 . Used 1 | . 1 . Hacking Detections 7 | . 7 . Full Trace Events 4 | . 4 . Feedback Events . | . . . Feedback Blocked . | . . . Robot Schematics Acquired 1 | . 1 . Robots Built . | . . . Authchips . | . . . Time . | . . . Total Robot Build Rating . | . . . Part Schematics Acquired . | . . . Parts Built . | . . . Authchips . | . . . Time . | . . . Total Part Build Rating . | . . . Parts Repaired . | . . . Time . | . . . Parts Recycled . | . . . Recycled Matter . | . . . Retrieved Matter . | . . . Retrieved Components . | . . . Parts Scanalyzed . | . . . Part Schematics Acquired . | . . . Parts Damaged . | . . . Bothacking | -11 -10 -10 ------------ Run | Yrd Mat Sub Used RIF Installer . | . . . Robots Hacked . | . . . Non-combat . | . . . Combat . | . . . Robot Hacks Applied . | . . . Relay Couplers Released . | . . . Fabnet Peak Effective % . | . . . Robots Rewired . | . . . Allies Hacked . | . . . Hacks Repelled . | . . . Allies | -11 -10 -10 -------- Run | Yrd Mat Sub Total Allies . | . . . Largest Group . | . . . Highest-Rated Group . | . . . Highest-Rated Ally . | . . . Total Orders . | . . . Ally Attacks . | . . . Total Damage . | . . . Kills . | . . . Allies Corrupted . | . . . Allies Melted . | . . . Intel | -11 -10 -10 ------- Run | Yrd Mat Sub Robot Analysis Total 8 | . 8 . Derelict Logs Recovered . | . . . Drone Launches . | . . . Drone Recoveries . | . . . Exploration | -11 -10 -10 ------------- Run | Yrd Mat Sub Turns Passed 1935 | 165 1298 472 Spaces Moved 1967 | 95 1254 618 Core 4 | 4 . . Treads . | . . . Legs . | . . . Wheels 152 | 91 61 . Hover 1811 | . 1193 618 Flight . | . . . Fastest Speed 50 | 50 56 56 Average Speed 58 | 80 57 56 Slowest Speed 180 | 90 180 56 Overloaded Moves . | . . . Propulsion Burnouts . | . . . Robots Hopped . | . . . Cave-ins Triggered . | . . . Exploration Rate (%) 46 | 4 92 44 Regions Visited 2 Branch Regions 1 Pre-discovered Areas 1 | . . 1 Known Exits Taken . | . . . Unknown Exits Taken 2 | 1 1 . Scrap Searched 5 | . . 5 Spaces Dug 15 | . 15 . Terrain Destroyed 64 | . 27 37 Melee . | . . . Projectile . | . . . AOE 64 | . 27 37 Terrain Rammed . | . . . Walls Destroyed . | . . . Machines Disabled . | . . . Actions | -11 -10 -10 --------- Run | Yrd Mat Sub Total 2384 | 141 1563 680 Wait 95 | . 80 15 Move 1965 | 94 1253 618 Hop . | . . . Pick Up 28 | 6 22 . Fast Attach 16 | 8 8 . Attach 11 | . 7 4 Detach 5 | 1 4 . Swap 28 | 6 15 7 Drop 35 | 5 30 . Fire 200 | 21 144 35 Melee . | . . . Ram . | . . . Kick . | . . . Crush . | . . . Escape Stasis . | . . . Rewire . | . . . Trap 1 | . . 1 Miscellaneous . | . . . Route ------- -11/Scrapyard -10/Materials (discovered 5 exits: [*Mat x3] / *Min / [*Sub]) -10/Subcaves (discovered 1 exit: [*Mat]) History --------- Turn | Location | Event 22 | -11/Scrapyard | Discovered new exit (range 15) 166 | -11/Scrapyard | Entered Materials 308 | -10/Materials | Build established: Mutant 753 | -10/Materials | Lost 3 parts (1n2w) 803 | -10/Materials | Discovered new exit (range 9) 846 | -10/Materials | Discovered new exit (range 16) 856 | -10/Materials | Discovered new exit (range 16) 1112 | -10/Materials | Discovered new exit (range 3) 1233 | -10/Materials | Central database locked down 1233 | -10/Materials | Identified exit to Mines 1240 | -10/Materials | Discovered new exit (range 12) 1464 | -10/Materials | Entered Subcaves 1489 | -10/Subcaves | Learned location of Zion (-7) 1489 | -10/Subcaves | Met a Zionite searching for "candidates" 1596 | -10/Subcaves | Discovered new exit (range 8) 1597 | -10/Subcaves | Shifting Twisted Machinery released Battle Rifle 1597 | -10/Subcaves | Shifting Twisted Machinery released Sub. Monowheel 1599 | -10/Subcaves | Ambushed by Subdwellers from Twisted Machinery 1806 | -10/Subcaves | A swath of the cavern ceiling suddenly collapsed 1913 | -10/Subcaves | Disturbed a concealed Subdweller 1919 | -10/Subcaves | Core integrity fell below 50% 1929 | -10/Subcaves | Core integrity fell below 20% 1936 | -10/Subcaves | Destroyed by 0Y-LVQ(R) with Subdweller Beam Cannon Last Messages --------------- 01902_ Installed Piercing Trap. 01909_ GY-0QT(R) triggered Piercing Trap. 01909_ Spikes shoot up from the floor. 01909_ GY-0QT(R) suffers critical hit (Impale). 01909_ GY-0QT(R) knocked back. 01912_ Battle Cannon destroyed. 01913_ 0Y-LVQ(R) angrily emerges from the Twisted Machinery. 01919_ ER-9SW(R) destroyed. 01920_ Acquired 39 matter. 01922_ GY-0QT(R) knocked back. 01923_ Acquired 8 matter. 01925_ GY-0QT(R) affixes Scrap Shield Fragment to Scrap Shield. 01925_ GY-0QT(R) Sub. Monowheel blasted off. 01926_ Acquired 2 matter. 01927_ 0Y-LVQ(R) affixes Scrap Shield Fragment to Scrap Shield. 01928_ Hover Unit destroyed. 01932_ GY-0QT(R) destroyed. 01933_ Acquired 15 matter. 01934_ Lgt. Cannon destroyed. 01934_ Hover Unit destroyed. Map ----- +----------------------------------------------------+ | | | | | | | | | | | | | ?????????????????????????????????????? | | ?????????????????????????????????????? | | ?????????????????????????????????????? | | ?????????????????????????????????????? | | ?????????????????????????????????????? | | ?????????????????????????????????????? | | ?????????????????????????????????????? | | ?????????????????????????????????????? | | ?????????????????????????????????????? | | ?????????????????????????????????????? | | ?????????????????????????????????????? | | ?????????????????????????????????????? | | ?????????????????????????????????????? | | ?????????????????????????????????????? | | ?????????????????????????????????????? | | ?????????????????????????????????????? | | ???????????????????###???????????????? | | ???????????????????# ##??????????????? | | ????????????####?### ##?####????????? | | ????????????#@=### ### ######???? | | ????????????#|<# #" #???? | | ????????????#&!# # ## # ###?? | | ????????????#R%# #" ######## ##? | | ????????????##%%"## ###????### ## | | ?????????????### ##?????# | | ???????????????# ##????# | | ???????????????## #???# | | ????????????????# ## #?# | | ???????????????# ##?# # | | ???????????????## #???# # | | ???????????????? ???## # # | | ???????????????## ????# # #### | | ????????????????###??? #?? | | ????????????????????? #### % ? | | ????????????????????? ????# | | ???????????????????????????? | | ???????????????????????????# # | | ???????????????????????????# ##? | | ???????????????????????????## ## #??? | | ???????????????????????????????###???? | | ?????????????????????????????????????? | | ?????????????????????????????????????? | | ?????????????????????????????????????? | | ?????????????????????????????????????? | +----------------------------------------------------+ Best States ------------- Heat Dissipation 39 Energy Generation 10 Energy Capacity 250 Matter Stores 300 Matter Capacity 300 Sight Range 16 Terrain Scan Range 16 Terrain Scan Density 10 Evasion (%) 53 Targeting Accuracy 5 Offensive Hacking 10 Item Schematics ----------------- None Robot Schematics ------------------ O-16 Technician | -10/Materials | Hacked Fabricated ------------ Nothing Alien Tech Used ----------------- None Achievements -------------- None Challenges ------------ None Game ------ Seed ArchitectComponentRefractor Manual? 0 Play Time 00:27:03 Cumulative 422.6 hours Start 2024.06.23 @ 07:44:24 End 2024.06.23 @ 08:09:18 Sessions 1 Manual Loads 0 Difficulty Rogue Special Mode None Game No. 153 Rogue 153 Adventurer 0 Explorer 0 Win Type - Total 3 Types 0/0/2/1/0/0/0/0/0 Lore% 71 Gallery% 79 Achievement% 63 Wizard Run 0 Options --------- Layout 0 ASCII 0 Keyboard 1 Movement Arrows Keybinds 0 Fullscreen 1 Font 12/Proggy Map View 83x54 Zoom Use 0% Tactical HUD 1 Map Filters NONE Filters NONE Steam 0 RUN: 7ed9c69f-1273-492c-8cf8-96486da780b8